bitfinex-derivatives/quotes_SOLF0:USTF0_20250530
["timestamp","ask_amount","ask_price","bid_price","bid_amount"]
[1748628703010,2.024,159.53,159.43,20.27554928]
[1748628703214,6.2685,159.5,159.47,6.2693]
[1748628703812,0.04261127,159.5,159.47,0.04313295]
[1748628704410,0.04261127,159.5,159.47,3.295e-05]
[1748628704616,0.04261127,159.5,159.39,34.18]
[1748628704806,34.18,159.51,159.39,34.18]
[1748628705413,6.2718,159.42,159.39,40.4527]
[1748628705721,0.0474512,159.42,159.39,34.22732303]
[1748628706619,6.2722,159.41,159.39,34.22732303]
[1748628706807,0.0474512,159.42,159.39,34.22732303]
[1748628707210,6.3192512,159.42,159.39,40.49992303]
[1748628707815,0.0474512,159.42,159.39,40.49992303]
[1748628708009,0.0474512,159.42,159.39,34.22732303]
[1748628708413,0.0474512,159.42,159.4,6.2723]
[1748628708621,0.0474512,159.42,159.39,34.22732303]
[1748628709220,0.0474512,159.42,159.41,6.2719]
[1748628712523,36.204,159.53,159.45,6.2702]
[1748628712726,36.204,159.53,159.44,34.18]
[1748628713025,38.3523,159.56,159.45,34.18]
[1748628713223,38.3523,159.56,159.46,34.18]
[1748628713419,38.3523,159.56,159.47,34.18]
[1748628713621,6.2679,159.52,159.49,0.04143142]
[1748628714016,6.30726675,159.53,159.5,6.2684]
[1748628714321,0.03986675,159.53,159.49,0.04143142]
[1748628714621,6.30736675,159.53,159.5,6.2682]
[1748628715218,0.03986675,159.53,159.49,0.04143142]
[1748628715821,0.03986675,159.53,159.49,6.30993142]
[1748628716125,0.03986675,159.53,159.49,0.04143142]
[1748628717721,0.03986675,159.53,159.51,6.2679]
[1748628718022,0.03986675,159.53,159.49,0.04143142]
[1748628718424,6.30726675,159.53,159.49,0.04143142]
[1748628718824,0.03986675,159.53,159.49,0.04143142]
[1748628719420,0.03986675,159.53,159.52,6.2676]
[1748628723726,34.16,159.62,159.51,34.16]
[1748628723727,2.1734,159.64,159.51,52.4413681]
[1748628723921,6.2647,159.6,159.52,1.9634]
[1748628724123,2.1734,159.64,159.52,4.0745]
[1748628724522,37.7373,159.68,159.56,0.04585373]
[1748628724724,39.8047,159.68,159.6,0.04081947]
[1748628725326,6.2639,159.62,159.6,0.04081947]
[1748628725527,39.8047,159.68,159.6,0.04081947]
[1748628726428,39.8047,159.68,159.53,6.267]
[1748628726627,18.2813681,159.66,159.55,33.64]
[1748628727029,6.2661,159.56,159.55,33.64]
[1748628727826,6.2665,159.55,159.54,0.04706793]
[1748628730326,0.0431861,159.57,159.49,33.64]
[1748628730521,2.1598,159.54,159.47,33.64]
[1748628730723,6.2689,159.49,159.47,33.64]
[1748628730925,2.1598,159.54,159.47,33.64]
[1748628731233,0.04454592,159.52,159.49,0.04446434]
[1748628731733,6.2687,159.5,159.49,0.04446434]
[1748628732430,6.2682,159.51,159.49,0.04446434]
[1748628732630,0.04454592,159.52,159.49,0.04446434]
[1748628733036,6.268,159.51,159.49,0.04446434]
[1748628733332,0.04454592,159.52,159.49,0.04446434]
[1748628734823,0.04454592,159.52,159.5,6.2684]
[1748628735034,0.04454592,159.52,159.49,0.04446434]
[1748628735435,0.04454592,159.52,159.5,6.2682]
[1748628736035,0.04454592,159.52,159.5,6.2681]
[1748628737129,0.04454592,159.52,159.51,6.268]
[1748628737730,0.04454592,159.52,159.51,39.908]
[1748628739135,33.64,159.62,159.51,33.64]
[1748628739535,6.2652,159.59,159.51,33.64]
[1748628739734,33.64,159.62,159.51,33.64]
[1748628740131,0.04324261,159.58,159.55,0.04763726]
[1748628740333,0.04324261,159.58,159.57,6.2654]
[1748628740940,0.04324261,159.58,159.56,6.266]
[1748628741137,0.04324261,159.58,159.55,33.68763726]
[1748628741529,0.04324261,159.58,159.55,39.95403726]
[1748628741734,6.30874261,159.58,159.55,39.95403726]
[1748628742043,0.04324261,159.58,159.55,33.68763726]
[1748628742238,6.2661,159.56,159.55,33.68763726]
[1748628742439,6.2661,159.56,159.55,0.04763726]
[1748628742636,33.66324261,159.58,159.49,6.2687]
[1748628742839,4.1196,159.57,159.49,6.2687]
[1748628743436,6.2679,159.52,159.49,6.2687]
[1748628743842,6.31537883,159.52,159.49,6.31458896]
[1748628744143,0.04747883,159.52,159.49,0.04588896]
[1748628747041,0.04747883,159.52,159.51,6.2681]
[1748628748137,33.62,159.61,159.55,6.2662]
[1748628748344,33.62,159.61,159.53,33.64]
[1748628748542,33.62,159.61,159.56,6.2659]
[1748628748841,6.3734,159.63,159.54,33.64]
[1748628748842,6.265,159.59,159.54,33.64]
[1748628749043,0.0401189,159.58,159.55,0.04722328]
[1748628749241,0.0401189,159.58,159.56,6.2659]
[1748628749636,6.3054189,159.58,159.55,0.04722328]
[1748628749842,0.0401189,159.58,159.56,6.2661]
[1748628750545,0.0401189,159.58,159.55,0.04722328]
[1748628751246,0.0401189,159.58,159.57,6.2657]
[1748628751942,0.0401189,159.58,159.55,0.04722328]
[1748628752954,6.2659,159.57,159.55,0.04722328]
[1748628753150,0.0401189,159.58,159.55,0.04722328]
[1748628753451,6.2661,159.56,159.55,0.04722328]
[1748628754657,6.2675,159.53,159.51,33.62]
[1748628754854,6.2675,159.53,159.5,6.2683]
[1748628755551,6.30825813,159.53,159.5,6.30957442]
[1748628756144,0.04075813,159.53,159.5,0.04127442]
[1748628756551,6.268,159.51,159.5,0.04127442]
[1748628756747,0.04075813,159.53,159.45,33.56]
[1748628756948,35.5391,159.56,159.45,33.56]
[1748628757150,6.2675,159.53,159.5,6.2682]
[1748628757749,0.04427225,159.53,159.51,6.2679]
[1748628758152,0.04427225,159.53,159.5,0.04710554]
[1748628759851,0.04427225,159.53,159.51,6.2681]
[1748628760354,0.04427225,159.53,159.52,6.2677]
[1748628761253,0.04427225,159.53,159.5,0.04710554]
[1748628761457,6.31177225,159.53,159.5,0.04710554]
[1748628761755,0.04427225,159.53,159.5,0.04710554]
[1748628762256,0.04427225,159.53,159.51,6.2678]
[1748628762652,6.31157225,159.53,159.51,6.2678]
[1748628763257,6.31157225,159.53,159.5,6.31540554]
[1748628764356,0.04427225,159.53,159.51,6.268]
[1748628765261,0.04427225,159.53,159.52,6.2677]
[1748628768867,0.04427225,159.53,159.5,0.04710554]
[1748628769360,0.04427225,159.53,159.5,6.31530554]
[1748628769565,0.04427225,159.53,159.5,0.04710554]
[1748628769868,6.2709,159.44,159.41,39.8319]
[1748628770168,33.56,159.49,159.41,33.56]
[1748628770362,6.2714,159.43,159.4,6.2721]
[1748628770764,6.3147221,159.43,159.4,6.3169537]
[1748628771063,6.272,159.41,159.4,0.0448537]
[1748628771367,0.0433221,159.43,159.35,33.56]
[1748628771568,6.2734,159.38,159.34,39.8344]
[1748628771866,1.9869,159.43,159.34,6.2744]
[1748628772367,0.04790717,159.4,159.37,0.04798482]
[1748628773467,6.2732,159.38,159.37,0.04798482]
[1748628773670,0.04790717,159.4,159.37,0.04798482]
[1748628775071,6.273,159.39,159.37,0.04798482]
[1748628775568,0.04790717,159.4,159.37,0.04798482]
[1748628776467,0.04790717,159.4,159.38,6.2731]
[1748628777368,0.04790717,159.4,159.39,6.2728]
[1748628777872,0.04790717,159.4,159.37,0.04798482]
[1748628778563,0.04790717,159.4,159.38,6.273]
[1748628778767,0.04790717,159.4,159.37,0.04798482]
[1748628779268,0.04790717,159.4,159.38,6.2731]
[1748628779570,0.04790717,159.4,159.37,0.04798482]
[1748628779769,0.04790717,159.4,159.38,6.2732]
[1748628779978,0.04790717,159.4,159.37,0.04798482]
[1748628780660,33.62790717,159.4,159.37,0.04798482]
[1748628781476,33.62790717,159.4,159.37,6.32118482]
[1748628781777,0.04790717,159.4,159.37,6.32118482]
[1748628782171,6.32030717,159.4,159.37,0.04798482]
[1748628783475,6.2728,159.39,159.37,0.04798482]
[1748628784175,6.2732,159.38,159.37,0.04798482]
[1748628786973,6.2728,159.39,159.37,0.04798482]
[1748628787176,0.04790717,159.4,159.37,0.04798482]
[1748628787770,6.32050717,159.4,159.37,6.32118482]
[1748628787976,0.04790717,159.4,159.37,6.32118482]
[1748628788372,0.04790717,159.4,159.37,0.04798482]
[1748628788980,6.2732,159.38,159.37,0.04798482]
[1748628790888,6.2729,159.39,159.37,0.04798482]
[1748628791088,0.04790717,159.4,159.37,0.04798482]
[1748628791487,6.32060717,159.4,159.37,6.32128482]
[1748628791689,0.04790717,159.4,159.37,0.04798482]
[1748628792193,6.2732,159.38,159.37,0.04798482]
[1748628793297,0.04790717,159.4,159.37,0.04798482]
[1748628793691,6.273,159.39,159.37,0.04798482]
[1748628793886,0.04790717,159.4,159.37,0.04798482]
[1748628794397,6.2732,159.38,159.37,0.04798482]
[1748628805796,6.2729,159.39,159.37,0.04798482]
[1748628806400,6.2732,159.38,159.37,0.04798482]
[1748628807007,0.04790717,159.4,159.37,0.04798482]
[1748628807506,6.2732,159.38,159.37,0.04798482]
[1748628815300,6.2732,159.38,159.37,8.482e-05]
[1748628828523,6.2756,159.32,159.29,33.16]
[1748628828826,6.2756,159.32,159.28,2.1122]
[1748628829117,6.2756,159.32,159.29,6.2764]
[1748628829512,6.276,159.31,159.29,0.04211638]
[1748628829825,0.04309131,159.32,159.29,0.04211638]
[1748628830024,6.31889131,159.32,159.29,0.04211638]
[1748628830221,0.04309131,159.32,159.29,6.31871638]
[1748628830423,0.04309131,159.32,159.29,0.04211638]
[1748628830721,6.2761,159.31,159.29,0.04211638]
[1748628831630,6.2761,159.31,159.29,6.31871638]
[1748628832124,0.04309131,159.32,159.29,0.04211638]
[1748628832523,0.04309131,159.32,159.31,6.2759]
[1748628832922,33.16,159.38,159.29,0.04211638]
[1748628833927,0.04010683,159.35,159.29,0.04211638]
[1748628834127,0.04010683,159.35,159.3,33.16]
[1748628834329,0.04010683,159.35,159.34,6.2747]
[1748628836532,0.04010683,159.35,159.33,6.31574338]
[1748628837128,6.2747,159.34,159.33,0.04084338]
[1748628838130,541.98,159.53,159.33,17.30222876]
[1748628838430,541.98,159.53,159.29,124.4]
[1748628838431,6.1268,159.51,159.34,37.2833]
[1748628838633,6.2722,159.41,159.35,33.16]
[1748628839333,0.04531217,159.4,159.36,0.04152042]
[1748628839833,0.04531217,159.4,159.38,6.2729]
[1748628840534,0.04531217,159.4,159.36,0.04152042]
[1748628841826,6.2735,159.37,159.36,0.04152042]
[1748628842033,0.04531217,159.4,159.36,0.04152042]
[1748628842832,6.2733,159.38,159.36,0.04152042]
[1748628843735,6.2735,159.37,159.36,0.04152042]
[1748628844834,33.16,159.37,159.3,6.2761]
[1748628845345,6.2745,159.35,159.29,35.1617]
[1748628845725,0.04127448,159.34,159.3,0.04107021]
[1748628847033,6.31617448,159.34,159.31,6.2756]
[1748628847235,0.04127448,159.34,159.3,0.04107021]
[1748628847437,6.2759,159.31,159.3,0.04107021]
[1748628847731,0.04127448,159.34,159.3,0.04107021]
[1748628848136,6.2755,159.32,159.3,0.04107021]
[1748628848836,6.2755,159.32,159.31,2.52686164]
[1748628849132,6.2753,159.33,159.31,2.52686164]
[1748628849336,0.04127448,159.34,159.32,2.52724423]
[1748628849536,0.04127448,159.34,159.33,2.5271238]
[1748628850334,6.31597448,159.34,159.33,2.5271238]
[1748628850533,6.31597448,159.34,159.33,2.52675051]
[1748628850737,0.04127448,159.34,159.33,2.52733334]
[1748628851034,0.04127448,159.34,159.33,2.52737727]
[1748628851438,0.04127448,159.34,159.3,0.04107021]
[1748628851636,0.04127448,159.34,159.31,6.2758]
[1748628852037,6.31637448,159.34,159.31,6.2758]
[1748628852340,6.31637448,159.34,159.3,6.31717021]
[1748628852341,0.04127448,159.34,159.3,6.31717021]
[1748628852538,0.04127448,159.34,159.31,2.52792234]
[1748628852742,6.2754,159.33,159.3,6.31717021]
[1748628852935,6.2754,159.33,159.31,2.52818982]
[1748628853136,6.2754,159.33,159.3,6.31717021]
[1748628853340,0.04127448,159.34,159.31,33.16]
[1748628853641,0.04127448,159.34,159.31,35.1782]
[1748628853840,0.04127448,159.34,159.31,41.4582]
[1748628854038,33.16,159.46,159.33,10.97166965]
[1748628854238,33.16,159.46,159.37,10.97166965]
[1748628854433,6.2716,159.42,159.39,6.2725]
[1748628854639,33.16,159.46,159.34,1.9784]
[1748628854842,33.16,159.45,159.33,33.16]
[1748628855146,33.16,159.45,159.38,0.04134775]
[1748628855147,0.04473011,159.42,159.38,0.04134775]
[1748628855340,33.16,159.41,159.38,0.04134775]
[1748628855541,6.2727,159.39,159.38,0.04134775]
[1748628864549,33.16,159.41,159.3,33.16]
[1748628864849,10.97166965,159.4,159.3,39.4362]
[1748628865352,12.5448,159.4,159.31,6.2757]
[1748628865551,0.04207658,159.37,159.34,0.03970963]
[1748628865751,6.2743,159.35,159.34,0.03970963]
[1748628866449,0.04207658,159.37,159.34,0.03970963]
[1748628866852,6.2743,159.35,159.34,0.03970963]
[1748628868146,0.04207658,159.37,159.34,0.03970963]
[1748628868754,6.31587658,159.37,159.34,0.03970963]
[1748628868955,0.04207658,159.37,159.34,0.03970963]
[1748628869647,0.04207658,159.37,159.35,6.274]
[1748628870951,0.04207658,159.37,159.36,6.2739]
[1748628871551,552.87166965,159.46,159.39,6.2724]
[1748628871552,39.4645,159.45,159.39,6.2724]
[1748628871752,39.4645,159.45,159.37,10.97166965]
[1748628871753,33.16,159.45,159.37,10.97166965]
[1748628871949,33.16,159.48,159.4,10.97166965]
[1748628872153,33.16,159.48,159.38,33.16]
[1748628872350,33.16,159.48,159.35,33.16]
[1748628872553,6.2728,159.39,159.35,33.16]
[1748628872747,0.04113088,159.39,159.35,33.20609295]
[1748628873459,0.04113088,159.39,159.38,6.2731]
[1748628874559,33.16,159.46,159.41,6.2719]
[1748628874951,6.271,159.44,159.39,33.14]
[1748628875654,0.04644479,159.43,159.41,6.2719]
[1748628876360,0.04644479,159.43,159.42,6.2716]
[1748628877651,0.04644479,159.43,159.4,2.10825621]
[1748628878060,0.04644479,159.43,159.41,6.2717]
[1748628878962,6.31764479,159.43,159.4,2.10825621]
[1748628879156,0.04644479,159.43,159.4,0.04225621]
[1748628879561,6.2718,159.42,159.4,0.04225621]
[1748628880654,6.31774479,159.43,159.4,6.31435621]
[1748628881053,6.31774479,159.43,159.41,6.2719]
[1748628881253,0.04644479,159.43,159.4,0.04225621]
[1748628881762,0.04644479,159.43,159.42,6.2716]
[1748628882662,2.0566,159.49,159.44,6.2707]
[1748628882860,6.2694,159.48,159.43,33.12]
[1748628883158,6.2694,159.48,159.45,6.2703]
[1748628883367,6.2689,159.49,159.43,33.12]
[1748628883566,0.04069292,159.48,159.44,0.04604091]
[1748628884261,0.04069292,159.48,159.47,6.2696]
[1748628884563,0.04069292,159.48,159.44,0.04604091]
[1748628884956,6.2698,159.47,159.44,6.31674091]
[1748628885361,6.2698,159.47,159.44,0.04604091]
[1748628885556,6.31009292,159.48,159.45,6.2702]
[1748628885760,6.31009292,159.48,159.44,0.04604091]
[1748628885962,6.31009292,159.48,159.45,6.2703]
[1748628886266,6.31009292,159.48,159.44,0.04604091]
[1748628886762,6.31009292,159.48,159.45,6.2702]
[1748628886968,0.04069292,159.48,159.44,0.04604091]
[1748628887364,0.04069292,159.48,159.46,6.2696]
[1748628887560,6.30989292,159.48,159.44,0.04604091]
[1748628887767,6.30989292,159.48,159.44,6.31664091]
[1748628887768,0.04069292,159.48,159.44,6.31664091]
[1748628887969,6.2699,159.47,159.44,6.31664091]
[1748628888366,0.04069292,159.48,159.44,0.04604091]
[1748628888569,6.2698,159.47,159.44,0.04604091]
[1748628889070,6.2698,159.47,159.45,6.2704]
[1748628889666,0.04069292,159.48,159.45,6.2704]
[1748628889667,6.31009292,159.48,159.45,6.2704]
[1748628889866,0.04069292,159.48,159.45,6.2704]
[1748628890062,6.30999292,159.48,159.46,6.27]
[1748628890770,0.04069292,159.48,159.44,11.01771056]
[1748628891168,33.12,159.58,159.47,10.97166965]
[1748628891376,33.12,159.58,159.48,33.12]
[1748628891578,6.2667,159.55,159.52,6.2676]
[1748628891778,33.12,159.58,159.52,6.2676]
[1748628891978,33.12,159.58,159.48,33.12]
[1748628892173,6.2676,159.53,159.51,0.04404523]
[1748628892379,0.04650114,159.55,159.51,0.04404523]
[1748628893182,6.2676,159.52,159.51,0.04404523]
[1748628894475,6.2674,159.53,159.51,0.04404523]
[1748628894676,0.04650114,159.55,159.51,0.04404523]
[1748628895083,6.2676,159.52,159.51,0.04404523]
[1748628896485,0.04650114,159.55,159.51,0.04404523]
[1748628896685,0.04650114,159.55,159.52,33.12]
[1748628896880,6.2672,159.54,159.52,33.12]
[1748628897382,6.2672,159.53,159.52,33.12]
[1748628897582,0.04650114,159.55,159.52,33.12]
[1748628898685,6.2672,159.53,159.52,33.12]
[1748628899185,0.04650114,159.55,159.51,0.04404523]
[1748628899389,6.2675,159.53,159.51,0.04404523]
[1748628900087,6.267,159.54,159.51,6.31184523]
[1748628900289,0.04650114,159.55,159.51,6.31184523]
[1748628900487,0.04650114,159.55,159.51,0.04404523]
[1748628900689,6.2676,159.52,159.51,0.04404523]
[1748628900988,0.04650114,159.55,159.51,0.04404523]
[1748628901785,6.31300114,159.55,159.53,6.2671]
[1748628902188,6.31300114,159.55,159.52,6.2675]
[1748628902686,0.04650114,159.55,159.53,6.267]
[1748628902884,0.04650114,159.55,159.51,0.04404523]
[1748628903182,0.04650114,159.55,159.53,6.2672]
[1748628903690,0.04650114,159.55,159.51,0.04404523]
[1748628903988,0.04650114,159.55,159.51,6.31194523]
[1748628904183,6.2672,159.54,159.51,6.31194523]
[1748628904585,0.04650114,159.55,159.52,6.2676]
[1748628905183,6.31310114,159.55,159.52,6.2676]
[1748628905384,0.04650114,159.55,159.51,0.04404523]
[1748628905589,0.04650114,159.55,159.54,6.2669]
[1748628909687,1.14e-06,159.55,159.54,6.2669]
[1748628909891,2.1038,159.61,159.58,6.265]
[1748628910292,2.1038,159.61,159.56,33.08]
[1748628910488,2.1038,159.61,159.53,33.08]
[1748628910687,10.97166965,159.6,159.49,33.08]
[1748628910887,6.2672,159.54,159.53,0.04663678]
[1748628916693,2.1038,159.61,159.53,33.12663678]
[1748628917287,6.2647,159.6,159.57,6.2654]
[1748628917495,6.2647,159.6,159.57,6.30998818]
[1748628917698,2.1038,159.61,159.57,0.04458818]
[1748628917896,2.1038,159.61,159.59,6.2647]
[1748628918393,2.1038,159.61,159.6,6.2645]
[1748628918599,6.2634,159.63,159.6,6.2645]
[1748628918899,6.2634,159.63,159.6,6.30557028]
[1748628919099,4.0419,159.64,159.6,0.04107028]
[1748628919495,4.0419,159.64,159.51,2.0823]
[1748628919496,4.0419,159.64,159.5,10.97166965]
[1748628919801,6.2651,159.59,159.51,33.08]
[1748628920194,6.2651,159.59,159.55,6.2663]
[1748628920394,6.2655,159.58,159.55,6.2663]
[1748628920596,0.04695533,159.59,159.55,6.31004954]
[1748628920797,6.2658,159.57,159.55,0.04374954]
[1748628921195,0.04695533,159.59,159.55,0.04374954]
[1748628921501,0.04695533,159.59,159.57,6.2655]
[1748628921898,6.31185533,159.59,159.57,6.2655]
[1748628922099,0.04695533,159.59,159.57,6.2655]
[1748628922493,0.04695533,159.59,159.55,33.12374954]
[1748628922494,0.04695533,159.59,159.58,6.2653]
[1748628923190,0.04695533,159.59,159.55,33.12374954]
[1748628924306,6.31205533,159.59,159.57,6.2656]
[1748628924505,0.04695533,159.59,159.57,6.2656]
[1748628924893,0.04695533,159.59,159.58,6.2653]
[1748628931196,33.08,159.68,159.55,51.36818764]
[1748628931401,4.0842,159.69,159.59,18.2444381]
[1748628931602,8.2916,159.7,159.6,33.08]
[1748628931903,2.0309,159.7,159.68,6.2611]
[1748628932209,8.2917,159.7,159.67,0.04341423]
[1748628933408,6.2611,159.69,159.67,0.04341423]
[1748628934105,6.2614,159.68,159.67,0.04341423]
[1748628935105,6.2611,159.69,159.67,0.04341423]
[1748628935309,2.0309,159.7,159.67,0.04341423]
[1748628935709,6.261,159.69,159.67,0.04341423]
[1748628938719,8.2916,159.7,159.67,0.04341423]
[1748628939111,2.0309,159.7,159.67,0.04341423]
[1748628939512,33.08,159.74,159.68,6.2613]
[1748628940316,6.2605,159.71,159.68,6.2613]
[1748628941617,6.2599,159.72,159.69,6.2609]
[1748628941825,33.08,159.74,159.67,0.04341423]
[1748628942022,6.2598,159.72,159.69,6.2609]
[1748628942417,33.08,159.74,159.67,0.04341423]
[1748628942719,6.2598,159.72,159.68,6.2611]
[1748628943122,6.2598,159.72,159.67,0.04341423]
[1748628943316,6.2598,159.72,159.69,6.2609]
[1748628943516,6.2602,159.71,159.69,6.2609]
[1748628944021,6.26,159.72,159.69,6.2609]
[1748628945823,6.2602,159.71,159.69,6.2609]
[1748628947321,6.2614,159.68,159.67,0.04341423]
[1748628947720,2.1752,159.7,159.63,6.2632]
[1748628947922,6.2625,159.66,159.63,6.2632]
[1748628948426,6.2627,159.65,159.63,6.2632]
[1748628949329,6.3065364,159.66,159.64,6.2628]
[1748628949626,6.3065364,159.66,159.62,33.08003872]
[1748628950026,0.0443364,159.66,159.62,33.08003872]
[1748628950324,0.0443364,159.66,159.62,44.02026091]
[1748628952130,0.0443364,159.66,159.65,6.2625]
[1748628955322,3.64e-05,159.66,159.65,6.2625]
[1748628955722,541.12,159.79,159.65,10.94022219]
[1748628955919,6.2589,159.75,159.66,33.04]
[1748628956330,6.2594,159.73,159.66,33.04]
[1748628956720,6.2594,159.73,159.68,0.04430173]
[1748628956929,6.2593,159.74,159.7,6.2603]
[1748628957130,6.272,159.83,159.7,44.02019491]
[1748628957427,10.94022219,159.81,159.75,0.04424487]
[1748628957729,33.04,159.8,159.75,0.04424487]
[1748628958028,6.2582,159.76,159.75,0.04424487]
[1748628959527,33.04,159.8,159.75,0.04424487]
[1748628960037,6.2582,159.76,159.75,0.04424487]
[1748628961637,6.2593,159.74,159.71,6.26]
[1748628961926,6.2593,159.74,159.7,39.3004]
[1748628962135,10.94022219,159.79,159.7,33.04]
[1748628962428,10.94022219,159.76,159.66,6.2618]
[1748628962639,0.04604243,159.73,159.69,0.04003857]
[1748628962833,6.2606,159.7,159.69,0.04003857]
[1748628963235,0.04604243,159.73,159.69,0.04003857]
[1748628963735,6.30554243,159.73,159.69,0.04003857]
[1748628964035,0.04604243,159.73,159.69,0.04003857]
[1748628964532,6.2598,159.72,159.69,0.04003857]
[1748628965529,0.04604243,159.73,159.69,0.04003857]
[1748628966031,6.2606,159.7,159.69,0.04003857]
[1748628970237,0.04604243,159.73,159.69,0.04003857]
[1748628971332,6.2601,159.72,159.69,6.30073857]
[1748628971533,0.04604243,159.73,159.69,0.04003857]
[1748628972741,6.30564243,159.73,159.7,6.2604]
[1748628973038,0.04604243,159.73,159.69,0.04003857]
[1748628973242,6.2601,159.72,159.69,6.30083857]
[1748628973631,0.04604243,159.73,159.69,0.04003857]
[1748628973838,6.30564243,159.73,159.7,6.2603]
[1748628974034,6.30564243,159.73,159.69,0.04003857]
[1748628974342,6.2601,159.72,159.69,6.30083857]
[1748628974540,0.04604243,159.73,159.69,0.04003857]
[1748628975039,6.2606,159.7,159.69,0.04003857]
[1748628975535,0.04604243,159.73,159.69,0.04003857]
[1748628976040,6.30564243,159.73,159.7,6.2605]
[1748628976241,6.30564243,159.73,159.69,0.04003857]
[1748628976440,6.30564243,159.73,159.7,6.2603]
[1748628976742,0.04604243,159.73,159.69,0.04003857]
[1748628977140,6.30574243,159.73,159.7,6.2603]
[1748628977345,0.04604243,159.73,159.69,0.04003857]
[1748628977639,0.04604243,159.73,159.7,6.2605]
[1748628978336,0.04604243,159.73,159.69,6.30083857]
[1748628978842,6.2599,159.72,159.69,6.30083857]
[1748628979048,6.2599,159.72,159.7,6.2605]
[1748628979341,6.2599,159.72,159.69,0.04003857]
[1748628979644,0.04604243,159.73,159.69,0.04003857]
[1748628980437,6.2606,159.7,159.69,0.04003857]
[1748628980642,43.96022219,159.71,159.61,33.02]
[1748628980841,6.2627,159.65,159.62,6.2634]
[1748628981140,4.2232,159.69,159.58,33.02]
[1748628981341,6.2639,159.62,159.59,6.2646]
[1748628981538,33.02,159.67,159.59,0.04218069]
[1748628981735,33.02,159.67,159.58,157.0]
[1748628981936,6.30586296,159.64,159.61,6.30360708]
[1748628982136,0.04276296,159.64,159.61,0.03960708]
[1748628982639,0.04276296,159.64,159.63,6.2633]
[1748628984440,0.04276296,159.64,159.62,6.2635]
[1748628984941,0.04276296,159.64,159.63,6.2633]
[1748628989038,0.04276296,159.64,159.62,39.2835]
[1748628989244,0.04276296,159.64,159.61,0.03960708]
[1748628989443,6.2636,159.63,159.61,0.03960708]
[1748628989646,0.04276296,159.64,159.61,0.03960708]
[1748628989837,0.04276296,159.64,159.56,33.02]
[1748628990035,0.04276296,159.64,159.54,540.74]
[1748628990036,6.2651,159.59,159.54,540.74]
[1748628990246,2.0928,159.64,159.54,540.74]
[1748628990761,0.04384085,159.61,159.57,0.04407545]
[1748628991144,6.2653,159.58,159.57,0.04407545]
[1748628991746,6.265,159.59,159.57,0.04407545]
[1748628992045,0.04384085,159.61,159.57,0.04407545]
[1748628992951,33.02,159.6,159.4,28.95394832]
[1748628993247,20.3440415,159.59,159.42,4.2204]
[1748628993440,20.3440415,159.59,159.47,6.2696]
[1748628994051,6.2677,159.52,159.51,0.04727269]
[1748628994246,0.04502425,159.55,159.51,0.04727269]
[1748628995550,6.2675,159.53,159.51,0.04727269]
[1748628995744,0.04502425,159.55,159.51,0.04727269]
[1748628997551,6.2671,159.54,159.51,0.04727269]
[1748628997946,6.2671,159.54,159.51,6.31527269]
[1748628998151,0.04502425,159.55,159.51,0.04727269]
[1748628998948,0.04502425,159.55,159.54,6.2668]
[1748629000251,0.04502425,159.55,159.52,6.2673]
[1748629000445,0.04502425,159.55,159.51,124.30727269]
[1748629001356,0.04502425,159.55,159.54,6.2668]
[1748629003453,1.9857,159.63,159.54,33.2]
[1748629004150,6.2648,159.6,159.56,6.2659]
[1748629004353,0.04310939,159.6,159.56,0.04142993]
[1748629005255,6.2652,159.59,159.56,0.04142993]
[1748629005458,6.2652,159.59,159.56,6.30742993]
[1748629006045,0.04310939,159.6,159.59,6.2649]
[1748629013057,6.1819,159.69,159.64,6.2628]
[1748629013247,6.1819,159.69,159.62,33.2]
[1748629013453,6.2621,159.67,159.63,33.2]
[1748629013654,6.1819,159.69,159.63,33.2]
[1748629014059,6.2626,159.65,159.64,0.04194331]
[1748629014460,0.04432803,159.68,159.64,0.04194331]
[1748629015060,6.2625,159.66,159.64,0.04194331]
[1748629015563,6.262,159.67,159.64,6.30474331]
[1748629015766,0.04432803,159.68,159.64,0.04194331]
[1748629017464,6.2624,159.66,159.64,0.04194331]
[1748629018063,0.04432803,159.68,159.64,0.04194331]
[1748629018763,6.30592803,159.68,159.65,6.2624]